bitfinex/quotes_ETHUSD_20241003
["timestamp","ask_amount","ask_price","bid_price","bid_amount"]
[1727974102362,4.2901,2331.0,2330.7,0.9862148]
[1727974102595,4.28978,2331.2,2330.7,5.2766748]
[1727974102862,4.28976,2331.2,2330.7,9.5671048]
[1727974103039,4.28936,2331.4,2330.8,0.7799]
[1727974103236,4.28956,2331.3,2330.8,5.07018]
[1727974103435,4.28956,2331.3,2330.9,0.507018]
[1727974103665,4.28936,2331.4,2330.9,4.797148]
[1727974103923,19.79942539,2332.4,2331.1,4.28981]
[1727974104051,4.28931,2331.4,2330.8,0.7799]
[1727974104378,4.28958,2331.3,2330.8,0.7799]
[1727974104584,5.487248,2331.2,2330.5,0.833]
[1727974104746,4.28982,2331.1,2330.7,4.29055]
[1727974104945,4.29012,2331.0,2330.5,5.12379]
[1727974105181,4.28918401,2331.0,2330.5,5.12379]
[1727974105338,4.28959,2331.3,2330.7,4.29041]
[1727974105663,5.05793,2331.4,2330.7,4.29047]
[1727974105864,0.7685,2331.4,2330.8,4.719317]
[1727974106073,0.7685,2331.4,2330.6,4.2907]
[1727974106074,4.28992,2331.1,2330.6,4.2907]
[1727974106245,4.28992,2331.1,2330.6,4.29064]
[1727974106444,4.29027,2330.9,2330.5,5.12383]
[1727974106764,4.29027,2330.9,2330.5,0.833]
[1727974106972,4.29045,2330.8,2330.5,0.833]
[1727974107541,4.29074,2330.6,2330.2,0.7938]
[1727974107781,4.29055,2330.7,2330.2,5.59376]
[1727974107981,4.29072,2330.7,2330.2,5.59376]
[1727974108140,4.29088,2330.6,2330.2,5.08523]
[1727974108576,4.29088,2330.6,2330.2,5.08525]
[1727974108784,4.29088,2330.6,2330.2,0.7938]
[1727974109002,0.7527,2330.9,2330.2,0.7938]
[1727974109003,4.29127,2330.4,2330.2,0.7938]
[1727974109142,4.29127,2330.4,2330.0,0.7938]
[1727974109343,4.29107,2330.5,2330.0,6.769394]
[1727974109571,8.58136,2330.7,2330.2,4.29134]
[1727974109772,4.29082,2330.6,2330.1,4.29158]
[1727974110043,5.11563,2331.1,2330.5,4.29083]
[1727974110367,5.11563,2331.1,2330.3,0.8192]
[1727974110368,4.2903,2330.9,2330.4,4.2911]
[1727974110544,8.58019,2331.0,2330.5,4.29084]
[1727974111040,4.29009,2331.0,2330.5,4.29084]
[1727974111241,4.29009,2331.0,2330.6,4.29072]
[1727974111460,4.29058,2330.7,2330.3,0.8192]
[1727974112287,4.29092,2330.5,2330.3,0.8192]
[1727974112595,4.29081,2330.6,2330.0,0.7784]
[1727974112757,4.29067,2330.7,2330.1,0.03523908]
[1727974112943,1.314319,2330.8,2330.0,0.7784]
[1727974113143,4.29123,2330.4,2330.0,0.7784]
[1727974113656,4.29068,2330.7,2330.3,4.29128]
[1727974113987,4.29033,2330.9,2330.4,0.7784]
[1727974114282,4.2899,2331.1,2330.7,4.29054]
[1727974114484,4.28975,2331.2,2330.8,0.8294]
[1727974114655,4.28935,2331.4,2331.0,4.28993]
[1727974114858,4.28935,2331.4,2330.8,0.8294]
[1727974115044,4.28946,2331.3,2330.9,0.511981]
[1727974115487,4.28935,2331.4,2330.8,0.8294]
[1727974115488,4.28964,2331.2,2330.8,0.8294]
[1727974115688,4.28964,2331.2,2330.8,5.11976]
[1727974115887,4.28954,2331.3,2330.9,4.29017]
[1727974116090,4.28928,2331.4,2330.8,5.11966]
[1727974116398,0.7507,2331.8,2330.9,4.29017]
[1727974116399,4.28957,2331.3,2330.9,4.29017]
[1727974116600,4.28963,2331.2,2330.8,5.11966]
[1727974117291,4.28996,2331.1,2330.8,0.8294]
[1727974117493,3.80607,2331.7,2330.8,5.11977]
[1727974117494,4.28964,2331.2,2330.8,5.11977]
[1727974117699,4.28964,2331.2,2330.8,0.8294]
[1727974117907,4.28982,2331.1,2330.8,0.8294]
[1727974118130,4.28964,2331.2,2330.8,0.8294]
[1727974118424,4.28956,2331.3,2330.8,5.631682]
[1727974118748,4.28956,2331.3,2330.8,5.11969]
[1727974119251,3.0,2331.5,2330.8,0.8294]
[1727974119395,3.0,2331.5,2330.5,4.797748]
[1727974119396,4.29032,2330.9,2330.6,0.7756]
[1727974119889,4.29038,2330.8,2330.6,0.7756]
[1727974120293,4.2902,2330.9,2330.6,0.7756]
[1727974120698,4.29004,2331.0,2330.6,5.06631]
[1727974121000,4.28985,2331.1,2330.6,5.06631]
[1727974121198,4.28971,2331.2,2330.8,4.29026]
[1727974121424,4.28991,2331.1,2330.6,5.572851]
[1727974121645,4.28991,2331.1,2330.7,4.29054]
[1727974121963,4.2899,2331.1,2330.7,4.29054]
[1727974122133,4.29026,2330.9,2330.6,0.7756]
[1727974122354,4.29053,2330.8,2330.3,5.05302]
[1727974122638,8.58131,2330.7,2330.3,0.7618]
[1727974122887,4.29065,2330.7,2330.3,5.05298]
[1727974123118,4.29103,2330.5,2330.3,0.7618]
[1727974123383,4.29057,2330.7,2330.3,5.053]
[1727974123539,0.7651,2331.1,2330.3,0.7618]
[1727974123739,4.29048,2330.8,2330.3,5.05301]
[1727974123977,4.29048,2330.8,2330.4,0.505301]
[1727974124190,4.2902,2330.9,2330.4,0.505301]
[1727974124370,4.29037,2330.8,2330.4,0.505301]
[1727974124548,8.58161,2330.6,2330.3,0.7618]
[1727974124957,4.29075,2330.6,2330.3,0.7618]
[1727974125840,0.7651,2331.1,2330.6,4.29065]
[1727974126085,4.28978,2331.2,2330.7,5.05578]
[1727974126244,8.57956,2331.2,2330.7,5.990423]
[1727974126443,4.28978,2331.2,2330.7,5.990423]
[1727974126659,4.28989,2331.1,2330.7,1.699943]
[1727974126855,4.28989,2331.1,2330.7,0.7653]
[1727974126856,4.2901,2331.0,2330.7,0.7653]
[1727974127060,4.28989,2331.1,2330.7,0.7653]
[1727974127061,4.28988,2331.1,2330.7,5.0558]
[1727974127292,4.29008,2331.0,2330.7,0.7653]
[1727974127711,4.29065,2330.7,2330.3,4.29125]
[1727974127918,0.7673,2331.2,2330.1,3.8329]
[1727974128091,4.29117,2330.4,2330.1,3.8329]
[1727974128257,0.7673,2330.7,2330.1,5.39136]
[1727974128258,4.2907,2330.7,2330.1,5.39136]
[1727974128464,4.2907,2330.7,2330.2,4.29136]
[1727974128663,7.28931,2331.4,2330.6,4.29063]
[1727974128664,4.29007,2331.0,2330.6,4.29063]
[1727974128860,1.197907,2331.6,2330.7,0.8299]
[1727974129113,4.28989,2331.1,2330.7,5.12041]
[1727974129264,4.28955,2331.3,2330.7,0.8299]
[1727974129596,4.28923,2331.5,2331.0,4.28997]
[1727974129597,4.28929,2331.4,2331.0,4.28997]
[1727974129770,4.28929,2331.4,2330.9,4.29016]
[1727974129771,4.28945,2331.3,2330.9,4.29016]
[1727974129978,4.28923,2331.5,2331.0,4.28999]
[1727974130480,4.28928,2331.4,2331.0,4.28999]
[1727974130674,4.2891,2331.5,2331.0,4.28988]
[1727974130861,4.28928,2331.4,2331.1,0.8209]
[1727974131262,4.28946,2331.3,2331.1,0.8209]
[1727974131884,4.28955,2331.3,2331.1,0.8209]
[1727974132084,4.28963,2331.2,2330.8,0.8209]
[1727974132285,4.28963,2331.2,2330.8,1.3749553]
[1727974132286,4.28994,2331.1,2330.8,1.3749553]
[1727974132658,4.28994,2331.1,2330.7,4.29055]
[1727974132659,4.2903,2330.9,2330.6,1.249963]
[1727974132859,4.29011,2331.0,2330.6,5.540683]
[1727974133095,0.8173,2331.6,2330.6,1.249963]
[1727974133307,4.28989,2331.1,2330.7,4.29053]
[1727974133710,4.29001,2331.0,2330.7,4.29053]
[1727974133893,4.28952,2331.3,2330.9,4.29018]
[1727974134911,4.28972,2331.2,2330.8,4.84033]
[1727974135115,8.57909,2331.3,2330.8,9.1306]
[1727974135423,4.28972,2331.2,2330.9,0.96846493]
[1727974135633,4.28972,2331.2,2330.9,5.25864493]
[1727974135931,4.28972,2331.2,2330.9,0.96846493]
[1727974136133,4.28939,2331.4,2330.7,4.8444293]
[1727974136434,4.28982,2331.1,2330.7,4.8444293]
[1727974136582,4.2899,2331.1,2330.7,0.5540493]
[1727974137128,4.29008,2331.0,2330.7,0.5540493]
[1727974137335,4.2902,2330.9,2330.7,0.5540493]
[1727974137483,4.29002,2331.0,2330.6,9.40207]
[1727974137687,4.29002,2331.0,2330.6,5.11148]
[1727974138036,4.28999,2331.1,2330.6,5.11156]
[1727974138202,4.29008,2331.0,2330.6,5.11156]
[1727974138408,4.29008,2331.0,2330.7,0.940245]
[1727974138635,4.29044,2330.8,2330.6,0.8209]
[1727974139330,0.7738,2331.1,2330.3,0.7573]
[1727974139530,4.2911,2330.4,2330.0,11.75173]
[1727974139734,4.29136,2330.3,2330.0,0.7573]
[1727974140104,4.29136,2330.3,2330.0,1.691442]
[1727974140286,5.06437,2330.7,2329.6,5.04977]
[1727974140503,5.06437,2330.7,2329.6,5.04972]
[1727974140504,4.29189,2330.0,2329.6,5.04972]
[1727974140706,4.29223,2329.8,2329.6,0.7573]
[1727974141006,4.29223,2329.8,2329.4,4.29291]
[1727974141007,4.29223,2329.8,2329.4,5.0502]
[1727974141219,4.29223,2329.8,2329.5,0.934322]
[1727974141418,4.2924,2329.7,2329.4,0.7573]
[1727974141684,4.29195,2330.0,2329.4,0.7573]
[1727974141834,4.29195,2330.0,2329.5,4.29266]
[1727974142034,4.29195,2330.0,2329.4,0.7573]
[1727974142035,4.29175,2330.1,2329.4,0.7573]
[1727974142221,4.29137,2330.3,2329.8,4.29211]
[1727974142418,4.29136,2330.3,2329.9,5.534511]
[1727974142732,4.2913,2330.3,2329.9,5.534481]
[1727974142915,4.2909,2330.6,2330.0,4.29179]
[1727974143119,4.29084,2330.6,2330.1,0.5534401]
[1727974143320,4.29021,2330.9,2330.3,4.29127]
[1727974143532,4.29021,2330.9,2330.5,4.2909]
[1727974143738,0.8326,2331.2,2330.4,0.816]
[1727974143739,0.8326,2331.5,2330.4,0.816]
[1727974143907,4.28934,2331.4,2330.9,5.1061]
[1727974144108,4.28899,2331.6,2331.0,4.28982]
[1727974144430,4.28916,2331.5,2331.1,0.08578512]
[1727974144601,4.28899,2331.6,2331.0,4.28998]
[1727974144801,4.28909,2331.5,2331.0,4.28998]
[1727974145199,4.28902,2331.6,2330.9,1.75563]
[1727974145403,4.28939,2331.4,2330.9,0.816]
[1727974145641,4.28955,2331.3,2330.9,0.816]
[1727974146249,4.28908,2331.5,2331.0,4.28987]
[1727974146416,4.28908,2331.5,2331.1,0.0319184]
[1727974146866,0.8326,2331.8,2331.1,0.0319184]
[1727974147013,4.28879,2331.7,2331.1,4.3215584]
[1727974147207,4.28879,2331.7,2331.3,5.09074]
[1727974147435,8.57696,2331.9,2331.3,5.09064]
[1727974147607,4.28912,2331.5,2331.3,0.8013]
[1727974147981,4.28835,2331.9,2331.3,0.8013]
[1727974147982,4.28874,2331.7,2331.3,5.09074]
[1727974148159,4.28874,2331.7,2331.3,6.07199158]
[1727974148458,4.28897,2331.6,2331.3,1.78255158]
[1727974148747,4.28874,2331.7,2331.3,1.78255158]
[1727974148955,4.28842,2331.9,2331.3,1.78255158]
[1727974149268,3.508762,2331.9,2331.0,0.825]
[1727974149548,4.29,2331.0,2330.7,0.825]
[1727974150665,0.8148,2331.5,2330.7,0.825]
[1727974150874,4.29028,2330.9,2330.4,5.11605]
[1727974151074,4.28999,2331.1,2330.5,0.511605]
[1727974151283,4.28992,2331.1,2330.6,4.29072]
[1727974151428,4.28992,2331.1,2330.7,4.29055]
[1727974151623,4.28992,2331.1,2330.5,4.802355]
[1727974151837,4.29008,2331.0,2330.6,0.5627355]
[1727974152666,4.29068,2330.7,2330.4,3.825]
[1727974152876,8.58136,2330.7,2330.4,0.825]
[1727974153089,4.29033,2330.9,2330.1,1.3656401]
[1727974153338,4.29132,2330.3,2330.1,0.8122]
[1727974153443,4.29056,2330.7,2329.8,5.19158662]
[1727974153444,4.29056,2330.7,2329.8,0.8122]
[1727974153649,4.29125,2330.4,2329.9,4.292]
[1727974153953,4.29125,2330.4,2330.0,0.939623]
[1727974154146,4.29084,2330.6,2330.0,0.939623]
[1727974154343,3.7932,2331.0,2330.0,0.939623]
[1727974154580,4.2912,2330.4,2330.0,4.29177]
[1727974154797,4.29166,2330.1,2329.8,0.8122]
[1727974154951,4.2915,2330.2,2329.8,5.10441]
[1727974155299,4.29156,2330.2,2329.8,0.8122]
[1727974155602,4.29105,2330.5,2329.8,0.8122]
[1727974155887,4.29106,2330.5,2329.8,0.8122]
[1727974156202,0.8058,2330.7,2329.8,0.8122]
[1727974156392,0.7841,2331.0,2329.8,5.91897506]
[1727974156692,4.29064,2330.7,2330.2,4.29144]
[1727974156862,0.7841,2331.0,2330.2,3.0]
[1727974157047,4.29169,2330.1,2329.9,0.7991]
[1727974157247,4.29184,2330.0,2329.6,3.7991]
[1727974157492,4.29169,2330.1,2329.5,5.19218662]
[1727974157493,4.29239,2329.7,2329.5,0.89954662]
[1727974157646,4.29214,2329.9,2329.4,4.29287]
[1727974157855,4.29222,2329.8,2329.5,1.77444866]
[1727974158157,4.29222,2329.8,2329.3,5.0922]
[1727974158358,4.29214,2329.9,2329.4,4.29293]
[1727974158561,4.29259,2329.6,2329.3,3.7991]
[1727974158793,4.29259,2329.6,2329.3,0.7991]
[1727974159385,4.29241,2329.7,2329.3,5.09221]
[1727974159609,4.29223,2329.8,2329.4,5.231485]
[1727974159789,4.29223,2329.8,2329.4,0.938545]
[1727974159948,4.29241,2329.7,2329.4,0.938545]
[1727974160744,4.29254,2329.7,2329.4,0.938545]
[1727974160957,4.29218,2329.9,2329.4,0.938545]
[1727974161109,4.29228,2329.8,2329.5,0.6030775]
[1727974161857,4.29222,2329.8,2329.5,0.6030775]
[1727974162159,4.29223,2329.8,2329.4,4.29278]
[1727974162650,4.29259,2329.6,2329.3,0.7991]
[1727974162834,0.7943,2330.2,2329.1,7.29349]
[1727974162835,4.29281,2329.5,2329.1,7.29349]
[1727974163034,4.29248,2329.7,2329.2,4.29317]
[1727974163220,4.29267,2329.6,2329.3,0.858666]
[1727974163422,4.29188,2330.0,2329.2,4.29317]
[1727974163625,4.29243,2329.7,2329.2,4.29317]
[1727974163865,4.2918,2330.1,2329.5,4.29264]
[1727974164154,8.58362,2330.1,2329.6,5.08139]
[1727974164310,4.2921,2329.9,2329.7,0.937399]
[1727974164511,4.2921,2329.9,2329.6,0.7889]
[1727974164711,4.29173,2330.1,2329.7,4.29239]
[1727974165109,12.29,2330.7,2329.7,4.29226]
[1727974165319,4.29142,2330.3,2329.9,4.29202]
[1727974165525,4.29114,2330.4,2330.0,4.29181]
[1727974165722,4.29114,2330.4,2330.0,5.150193]
[1727974165952,4.29114,2330.4,2330.0,0.858383]
[1727974165953,4.29131,2330.3,2330.0,0.858383]
[1727974166128,4.29114,2330.4,2330.1,0.7576]
[1727974166331,8.58241,2330.4,2330.1,1.7775843]
[1727974166509,4.29139,2330.3,2330.1,0.7576]
[1727974166714,4.29147,2330.2,2330.1,0.7576]
[1727974166910,4.29139,2330.3,2329.5,5.10677506]
[1727974166911,4.29186,2330.0,2329.6,0.7706]
[1727974167157,4.2923,2329.8,2329.6,0.7706]
[1727974167466,4.2915,2330.2,2329.3,7.29299]
[1727974167467,4.29249,2329.7,2329.3,0.7515]
[1727974167632,4.29249,2329.7,2329.3,5.04461]
[1727974167951,4.29278,2329.5,2329.3,0.7515]
[1727974168251,4.29267,2329.6,2329.3,0.7515]
[1727974168408,4.29243,2329.7,2329.3,5.04462]
[1727974168931,0.7566,2329.8,2329.0,0.7903]
[1727974169253,0.7566,2329.8,2328.7,0.7903]
[1727974169254,4.29393,2328.9,2328.7,0.7903]
[1727974169416,4.29432,2328.7,2328.5,0.89954662]
[1727974169615,4.29369,2329.0,2328.4,0.89954662]
[1727974169955,4.29479,2328.4,2328.3,0.89954662]
[1727974170118,4.29462,2328.5,2328.1,1.65994662]
[1727974170317,4.29462,2328.5,2328.1,2.5703256]
[1727974170514,4.2947,2328.5,2328.1,1.67077898]
[1727974170711,4.2948,2328.4,2328.1,1.67077898]
[1727974170914,4.2948,2328.4,2328.1,0.7604]
[1727974171157,4.29507,2328.3,2327.8,5.98182662]
[1727974171476,4.29463,2328.5,2328.0,4.29535]
[1727974171614,0.832,2328.6,2327.7,0.89954662]
[1727974171814,4.29564,2328.0,2327.5,1.68994662]
[1727974172049,4.29564,2328.0,2327.6,0.89954662]
[1727974172282,4.29564,2328.0,2327.5,6.8997736]
[1727974172414,4.29564,2328.0,2327.5,1.70388698]
[1727974172616,4.29529,2328.2,2327.6,4.29623]
[1727974172815,4.2949,2328.4,2327.6,4.29623]
[1727974173014,8.5898,2328.4,2327.8,4.29588]
[1727974173363,8.58906,2328.6,2328.1,0.7848]
[1727974173517,4.29451,2328.6,2328.1,5.08011]
[1727974173853,0.7916,2328.9,2328.2,4.29514]
[1727974174026,3.0,2328.9,2328.3,0.507994]
[1727974174229,4.29518,2328.2,2327.8,0.7508]
[1727974174448,0.8164,2328.9,2327.6,0.7508]
[1727974174449,4.2948,2328.4,2327.6,0.7508]
[1727974174645,4.29554,2328.0,2327.6,0.7508]
[1727974174852,4.29574,2327.9,2327.6,0.7508]
[1727974175055,4.29574,2327.9,2327.6,1.255532]
[1727974175259,0.8164,2328.3,2327.6,1.255532]
[1727974175567,0.8164,2328.3,2327.6,0.7508]
[1727974175785,8.58952,2328.5,2328.0,4.29552]
[1727974176279,4.29472,2328.5,2328.0,4.29552]
[1727974176663,8.58949,2328.5,2328.0,4.29542]
[1727974176834,4.29475,2328.5,2328.1,0.429542]
[1727974177037,4.29475,2328.5,2328.0,4.29553]
[1727974177439,4.29442,2328.6,2328.1,4.29524]
[1727974177742,0.8099,2328.9,2328.0,4.2954]
[1727974177743,4.29417,2328.8,2328.0,4.2954]
[1727974177953,4.29452,2328.6,2328.1,4.7248]
[1727974178155,4.29452,2328.6,2328.1,0.42954]
[1727974178439,4.29452,2328.6,2328.0,4.2954]
[1727974178640,4.29462,2328.5,2328.0,4.2954]
[1727974178938,4.29462,2328.5,2328.0,8.59083]
[1727974179139,4.29462,2328.5,2328.0,4.2954]
[1727974179340,4.29462,2328.5,2328.0,8.59079]
[1727974179545,4.29462,2328.5,2328.1,0.859079]
[1727974179854,4.29452,2328.6,2328.1,4.29532]
[1727974179855,8.58904,2328.6,2328.1,4.29532]
[1727974180055,4.29452,2328.6,2328.0,4.29539]
[1727974180359,4.29498,2328.3,2327.8,8.6264]
[1727974180569,4.29479,2328.4,2327.8,5.07638]
[1727974180792,4.29479,2328.4,2327.9,4.803248]
[1727974181085,4.29499,2328.3,2327.9,0.507638]
[1727974181313,4.29499,2328.3,2327.9,4.2957]
[1727974181853,4.29499,2328.3,2327.8,5.07638]
[1727974182065,4.29475,2328.5,2327.8,5.07638]
[1727974182066,4.29479,2328.4,2327.8,5.07638]
[1727974182284,4.29426,2328.7,2327.8,0.7806]
[1727974182447,4.29607,2327.8,2327.5,0.8226]
[1727974182645,0.7606,2328.3,2327.2,4.29691]
[1727974182646,4.29631,2327.6,2327.2,5.11951]
[1727974182853,4.29598,2327.8,2327.3,4.29679]
[1727974183148,4.29635,2327.6,2327.2,1.334551]
[1727974183488,4.29608,2327.7,2327.2,5.631531]
[1727974183854,4.29608,2327.7,2327.2,1.334551]
[1727974184057,4.29693,2327.3,2326.9,0.8091]
[1727974184416,4.29646,2327.5,2327.0,4.29726]
[1727974184582,4.29646,2327.5,2326.6,0.8091]
[1727974184583,4.29788,2326.8,2326.6,0.8091]
[1727974184785,4.29828,2326.6,2326.3,0.8091]
[1727974184960,8.06991,2327.0,2326.4,4.29839]
[1727974184961,5.07003,2327.0,2326.4,4.29839]
[1727974185311,4.29778,2326.8,2326.4,4.29839]
[1727974185652,4.29801,2326.7,2326.3,1.40985566]
[1727974185854,4.29801,2326.7,2326.3,0.8091]
[1727974186067,4.29812,2326.6,2326.3,0.8091]
[1727974186253,4.29768,2326.9,2326.3,5.10768]
[1727974186462,4.29733,2327.1,2326.5,4.29815]
[1727974186664,4.29733,2327.1,2326.5,5.238732]
[1727974186892,4.29709,2327.2,2326.7,4.29783]
[1727974187102,4.29709,2327.2,2326.6,0.0859596]
[1727974187103,4.29709,2327.2,2326.8,4.29774]
[1727974187255,4.29696,2327.3,2326.9,0.8112]
[1727974187455,4.29693,2327.3,2326.9,1.322085]
[1727974187752,4.29653,2327.5,2326.9,1.322085]
[1727974187986,4.29712,2327.2,2326.9,1.322085]
[1727974188291,4.29691,2327.3,2326.9,1.322085]
[1727974188600,4.29727,2327.1,2326.6,3.0]
[1727974188898,4.29683,2327.3,2326.7,4.29784]
[1727974189081,4.29683,2327.3,2326.5,5.11603]
[1727974189082,4.29774,2326.9,2326.5,0.8178]
[1727974189497,4.29774,2326.9,2326.5,5.11604]
[1727974189699,4.29733,2327.1,2326.5,5.19843589]
[1727974189855,4.29719,2327.1,2326.5,0.8178]
[1727974190193,8.5945,2327.1,2326.6,4.2981]
[1727974190396,4.29742,2327.0,2326.6,5.239526]
[1727974190736,8.59455,2327.1,2326.6,5.239426]
[1727974190900,4.29719,2327.1,2326.6,5.239426]
[1727974191194,4.29703,2327.2,2326.7,4.9035626]
[1727974191595,4.29694,2327.3,2326.7,4.9035626]
[1727974191596,4.29694,2327.3,2326.8,4.29766]
[1727974191799,0.8057,2327.6,2326.7,0.6057226]
[1727974192009,4.29719,2327.1,2326.7,4.9036426]
[1727974192168,4.29694,2327.3,2326.7,4.9036426]
[1727974192169,4.29701,2327.2,2326.7,4.9036426]
[1727974192759,4.29655,2327.5,2326.8,5.21781426]
[1727974192965,4.29639,2327.6,2327.1,4.29709]
[1727974193194,4.29639,2327.6,2326.9,5.06684]
[1727974193195,4.29674,2327.4,2326.9,8.06694]
[1727974193364,0.791,2327.9,2326.9,8.06694]
[1727974193365,4.29709,2327.2,2326.9,0.7694]
[1727974193570,4.29727,2327.1,2326.9,0.7694]
[1727974193998,4.29646,2327.5,2326.9,0.7694]
[1727974194164,4.29728,2327.1,2326.9,0.7694]
[1727974194591,4.29737,2327.0,2326.6,5.12268]
[1727974194810,4.29732,2327.1,2326.6,6.364784]
[1727974195004,4.29746,2327.0,2326.6,0.8247]
[1727974195369,4.29757,2326.9,2326.6,0.8247]
[1727974195569,4.29775,2326.8,2326.6,0.8247]
[1727974195870,4.29814,2326.6,2326.3,0.7863]
[1727974196512,4.29807,2326.7,2326.3,0.7863]
[1727974196513,4.29796,2326.7,2326.3,0.7863]
[1727974196714,4.29816,2326.6,2326.3,0.7863]
[1727974197083,4.29783,2326.8,2326.3,5.593494]
[1727974197797,5.10953,2327.0,2326.4,4.29843]
[1727974197798,4.29759,2326.9,2326.4,4.29843]
[1727974197981,4.29779,2326.8,2326.3,9.892044]
[1727974198168,4.29779,2326.8,2326.4,4.29845]
[1727974198513,4.29803,2326.7,2326.3,0.7863]
[1727974198713,4.29779,2326.8,2326.3,0.7863]
[1727974199003,4.29825,2326.6,2326.3,0.7863]
[1727974199717,4.29771,2326.9,2326.3,5.08488]
[1727974199881,4.29711,2327.2,2326.3,5.08488]
[1727974199882,4.29792,2326.8,2326.3,5.08488]
[1727974200218,3.7896,2327.3,2326.4,0.55]
[1727974200372,3.0,2327.1,2326.3,5.08485]
[1727974200721,4.29846,2326.5,2326.3,0.7863]
[1727974200912,4.29843,2326.5,2326.3,0.7863]
[1727974201080,4.29862,2326.4,2326.0,5.11621]
[1727974201270,4.29904,2326.1,2326.0,0.817]
[1727974201470,4.29933,2326.0,2325.6,0.817]
[1727974201704,4.29933,2326.0,2325.6,5.11691]
[1727974202025,4.29814,2326.6,2325.7,4.29971]
[1727974202026,4.29889,2326.2,2325.7,4.29971]
[1727974202348,0.7543,2326.7,2325.7,4.29971]
[1727974202349,5.05225,2326.7,2325.7,5.241422]
[1727974202490,4.29899,2326.2,2325.7,5.241422]
[1727974202843,0.7543,2326.7,2325.7,0.941662]
[1727974203003,4.29848,2326.4,2325.7,0.941662]
[1727974203331,4.29893,2326.2,2325.7,5.241292]
[1727974203538,0.7543,2326.7,2325.8,1.0358152]
[1727974203539,4.29831,2326.5,2325.8,1.0358152]
[1727974203688,4.29889,2326.2,2325.8,4.29959]
[1727974204424,4.29889,2326.2,2325.7,5.241282]
[1727974204425,4.29905,2326.1,2325.7,5.241282]
[1727974204722,4.29924,2326.0,2325.6,0.817]
[1727974204925,4.2995,2325.9,2325.6,0.817]
[1727974205129,4.29828,2326.6,2325.3,0.814]
[1727974205130,4.29977,2325.8,2325.3,0.814]
[1727974205435,4.30001,2325.6,2325.3,0.814]
[1727974205946,4.29974,2325.8,2325.3,0.814]
[1727974206232,8.60046,2325.5,2325.3,0.814]
[1727974206435,4.30022,2325.5,2325.3,0.814]
[1727974206926,4.29991,2325.7,2325.3,1.325475]
[1727974207086,4.29998,2325.6,2325.3,0.814]
[1727974207293,4.30033,2325.4,2325.0,0.814]
[1727974207524,4.30063,2325.3,2325.0,0.814]
[1727974207724,4.30018,2325.5,2325.0,5.11499]
[1727974207897,4.30048,2325.4,2325.0,0.814]
[1727974208290,4.30048,2325.4,2325.0,6.28150166]
[1727974208489,4.30048,2325.4,2325.0,0.814]
[1727974208490,4.30045,2325.4,2325.0,0.814]
[1727974208726,4.30054,2325.3,2325.0,0.814]
[1727974208941,4.30064,2325.3,2325.0,1.71354662]
[1727974209228,4.30004,2325.6,2325.2,4.30065]
[1727974209426,4.30004,2325.6,2325.0,1.73033598]
[1727974209427,4.30004,2325.6,2325.1,8.60158]
[1727974209653,4.30004,2325.6,2325.1,8.6016]
[1727974209948,4.30004,2325.6,2325.1,4.30079]
[1727974210242,4.30004,2325.6,2325.2,4.30069]
[1727974210396,4.30004,2325.6,2325.2,5.3338716]
[1727974210599,5.12833,2326.0,2325.5,4.30006]
[1727974210600,4.29925,2326.0,2325.5,4.30006]
[1727974210835,4.29994,2325.7,2325.4,0.7834]
[1727974211037,8.59986,2325.7,2325.4,0.7834]
[1727974211342,4.30006,2325.6,2325.4,0.7834]
[1727974211502,4.29956,2325.9,2325.4,5.69530816]
[1727974211897,4.29956,2325.9,2325.5,4.85007]
[1727974212137,4.29856,2326.4,2325.9,4.29929]
[1727974212338,4.29856,2326.4,2325.6,6.15783782]
[1727974212339,4.29849,2326.4,2325.6,6.15783782]
[1727974212637,4.29906,2326.1,2325.7,4.29975]
[1727974212849,4.29869,2326.3,2325.9,4.29938]
[1727974213001,4.29914,2326.1,2325.8,0.55]
[1727974213433,4.29859,2326.4,2325.9,4.29933]
[1727974213636,4.29876,2326.3,2325.8,9.14907]
[1727974213807,4.29876,2326.3,2325.8,4.84949]
[1727974214138,4.29864,2326.4,2325.9,4.84592588]
[1727974214304,4.29868,2326.3,2325.9,0.54652588]
[1727974214815,3.0,2326.8,2326.2,4.29884]
[1727974214816,4.29825,2326.6,2326.2,4.29884]
[1727974215133,4.29736,2327.1,2326.6,0.7794]
[1727974215446,4.29714,2327.2,2326.7,4.84783]
[1727974215600,4.29764,2326.9,2326.6,0.7794]
[1727974215802,4.29776,2326.8,2326.6,0.7794]
[1727974216101,4.29738,2327.0,2326.6,0.7794]
[1727974216499,4.2976,2326.9,2326.6,0.7794]
[1727974216860,4.29774,2326.8,2326.6,0.7794]
[1727974217140,4.2976,2326.9,2326.6,0.7794]
[1727974217700,4.29746,2327.0,2326.6,0.7794]
[1727974217902,4.29746,2327.0,2326.6,5.07751]
[1727974218225,8.59459,2327.1,2326.7,4.29783]
[1727974218541,8.59459,2327.1,2326.6,1.716969]
[1727974218542,8.5946,2327.1,2326.6,6.014989]
[1727974218750,4.29729,2327.1,2326.6,6.014989]
[1727974219045,4.29739,2327.0,2326.6,6.014989]
[1727974219252,0.7929,2327.3,2326.6,0.7794]
[1727974219253,4.29783,2326.8,2326.6,0.7794]
[1727974219460,4.29783,2326.8,2326.5,0.55]
[1727974219600,4.29801,2326.7,2326.4,0.7551]
[1727974219801,4.29801,2326.7,2326.3,0.55]